fUSD/lending_fUSD_20260530
["ID","MTS","AMOUNT","RATE_DAILY","PERIOD"]
[423412102,1780091432000,-156.604429,7.654e-05,2]
[423412106,1780091432000,-156.604429,7.654e-05,2]
[423412081,1780091432000,-282.0,7.577e-05,2]
[423412105,1780091432000,-156.604429,7.654e-05,2]
[423412107,1780091432000,-151.0,7.654e-05,2]
[423412104,1780091432000,-156.604429,7.654e-05,2]
[423412108,1780091432000,-151.0,7.654e-05,2]
[423412110,1780091432000,-151.0,7.654e-05,2]
[423412111,1780091432000,-151.0,7.654e-05,2]
[423412112,1780091432000,-151.0,7.654e-05,2]
[423412097,1780091432000,-162205.0,7.654e-05,2]
[423412083,1780091432000,-2809.78310969,7.616e-05,2]
[423412076,1780091432000,-166.66,7.374e-05,2]
[423412080,1780091432000,-1680.0,7.497e-05,2]
[423412109,1780091432000,-151.0,7.654e-05,2]
[423412052,1780091432000,-576.0,7.103e-05,2]
[423412051,1780091432000,-1522.29,7.075e-05,2]
[423412053,1780091432000,-1522.29,7.112e-05,2]
[423412050,1780091432000,-1522.29,7.038e-05,2]
[423412054,1780091432000,-1522.29,7.149e-05,2]
[423412055,1780091432000,-166.66,7.165e-05,2]
[423412057,1780091432000,-1522.29,7.186e-05,2]
[423412059,1780091432000,-1522.29,7.223e-05,2]
[423412062,1780091432000,-299.99,7.252e-05,2]
[423412072,1780091432000,-1522.29,7.297e-05,2]
[423412061,1780091432000,-212.38,7.252e-05,2]
[423412064,1780091432000,-9999.99,7.252e-05,2]
[423412068,1780091432000,-9999.99,7.252e-05,2]
[423412071,1780091432000,-1522.29,7.26e-05,2]
[423412065,1780091432000,-366.39,7.252e-05,2]
[423412063,1780091432000,-150.99,7.252e-05,2]
[423412070,1780091432000,-7656.43,7.252e-05,2]
[423412067,1780091432000,-255.93,7.252e-05,2]
[423412069,1780091432000,-2862.11,7.252e-05,2]
[423412073,1780091432000,-1522.29,7.334e-05,2]
[423412075,1780091432000,-1522.29,7.371e-05,2]
[423412077,1780091432000,-250.0,7.4e-05,2]
[423412086,1780091432000,-3099.0949836,7.616e-05,2]
[423412078,1780091432000,-250.0,7.413e-05,2]
[423412085,1780091432000,-4499.25139724,7.616e-05,2]
[423412079,1780091432000,-163.91,7.416e-05,2]
[423412084,1780091432000,-841.3188791,7.616e-05,2]
[423412115,1780091432000,-604.47270947,7.86e-05,2]
[423412172,1780091432000,-171.300144,8.8e-05,2]
[423412120,1780091432000,-8024.54,8.058e-05,2]
[423412147,1780091432000,-2351.0,8.247e-05,2]
[423412150,1780091432000,-500.0,8.387e-05,2]
[423412151,1780091432000,-342.0,8.47e-05,2]
[423412160,1780091432000,-151.0,8.667e-05,2]
[423412154,1780091432000,-184.4,8.515e-05,2]
[423412157,1780091432000,-1280.0,8.631e-05,2]
[423412153,1780091432000,-500.0,8.493e-05,2]
[423412155,1780091432000,-500.0,8.598e-05,2]
[423412152,1780091432000,-500.0,8.493e-05,2]
[423412159,1780091432000,-151.0,8.667e-05,2]
[423412156,1780091432000,-166.66,8.605e-05,2]
[423412158,1780091432000,-87411.9109349,8.667e-05,2]
[423412161,1780091432000,-151.0,8.667e-05,2]
[423412162,1780091432000,-576.0,8.681e-05,2]
[423412163,1780091432000,-500.0,8.703e-05,2]
[423412165,1780091432000,-168792.5,8.8e-05,2]
[423412166,1780091432000,-162205.0,8.8e-05,2]
[423412168,1780091432000,-1175.497728,8.8e-05,2]
[423412164,1780091432000,-437.22225603,8.767e-05,2]
[423412167,1780091432000,-1175.497728,8.8e-05,2]
[423412169,1780091432000,-1175.497728,8.8e-05,2]
[423412175,1780091432000,-156.604429,8.8e-05,2]
[423412173,1780091432000,-156.604429,8.8e-05,2]
[423412171,1780091432000,-151.0,8.8e-05,2]
[423412174,1780091432000,-156.604429,8.8e-05,2]
[423412176,1780091432000,-156.604429,8.8e-05,2]
[423412114,1780091432000,-255.0,7.7e-05,2]
[423412146,1780091432000,-2000.0,8.219e-05,2]
[423412145,1780091432000,-4442.27,8.219e-05,2]
[423412170,1780091432000,-1175.497728,8.8e-05,2]
[423412144,1780091432000,-160.19,8.219e-05,2]
[423412143,1780091432000,-500.0,8.219e-05,2]
[423412119,1780091432000,-300.0,8e-05,2]
[423412123,1780091432000,-847.785472,8.178e-05,2]
[423412121,1780091432000,-500.0,8.071e-05,2]
[423412118,1780091432000,-500.0,7.966e-05,2]
[423412117,1780091432000,-214.0,7.945e-05,2]
[423412122,1780091432000,-500.0,8.176e-05,2]
[423412124,1780091432000,-500.0,8.219e-05,2]
[423412125,1780091432000,-500.0,8.219e-05,2]
[423412126,1780091432000,-500.0,8.219e-05,2]
[423412128,1780091432000,-500.0,8.219e-05,2]
[423412131,1780091432000,-500.0,8.219e-05,2]
[423412136,1780091432000,-500.0,8.219e-05,2]
[423412135,1780091432000,-500.0,8.219e-05,2]
[423412116,1780091432000,-576.0,7.892e-05,2]
[423412129,1780091432000,-500.0,8.219e-05,2]
[423412127,1780091432000,-500.0,8.219e-05,2]
[423412139,1780091432000,-1000.0,8.219e-05,2]
[423412142,1780091432000,-5430.3719945,8.219e-05,2]
[423412148,1780091432000,-500.0,8.282e-05,2]
[423412141,1780091432000,-447.25640203,8.219e-05,2]
[423412140,1780091432000,-1000.0,8.219e-05,2]
[423412149,1780091432000,-160.0,8.334e-05,2]
[423412137,1780091432000,-500.0,8.219e-05,2]
[423412134,1780091432000,-500.0,8.219e-05,2]
[423412132,1780091432000,-500.0,8.219e-05,2]
[423412133,1780091432000,-500.0,8.219e-05,2]
[423412130,1780091432000,-343.19598443,8.219e-05,2]
[423412138,1780091432000,-200.0,8.219e-05,2]
[423412203,1780091433000,-500.0,9.546e-05,2]
[423412202,1780091433000,-576.0,9.47e-05,2]
[423412207,1780091433000,-9999.99,9.67e-05,2]
[423412205,1780091433000,-500.0,9.652e-05,2]
[423412201,1780091433000,-500.0,9.441e-05,2]
[423412206,1780091433000,-21381.5,9.67e-05,2]
[423412208,1780091433000,-10588.28,9.67e-05,2]
[423412209,1780091433000,-166.66,9.67e-05,2]
[423412211,1780091433000,-403.848,9.677e-05,2]
[423412215,1780091433000,-2000.0,9.84e-05,2]
[423412212,1780091433000,-87411.9109349,9.68e-05,2]
[423412214,1780091433000,-33230.1787,9.84e-05,2]
[423412216,1780091433000,-5000.0,9.86e-05,2]
[423412219,1780091433000,-866.5,9.879e-05,2]
[423412217,1780091433000,-46271.29158447,9.862e-05,2]
[423412210,1780091433000,-3605.101,9.677e-05,2]
[423412220,1780091433000,-350.0,9.899e-05,2]
[423412204,1780091433000,-1280.0,9.59e-05,2]
[423412221,1780091433000,-151.0,9.921e-05,2]
[423412213,1780091433000,-500.0,9.757e-05,2]
[423412200,1780091433000,-500.0,9.336e-05,2]
[423412184,1780091433000,-151.0,8.8e-05,2]
[423412199,1780091433000,-166.66,9.315e-05,2]
[423412224,1780091433000,-500.0,9.933e-05,2]
[423412181,1780091433000,-151.0,8.8e-05,2]
[423412179,1780091433000,-156.604429,8.8e-05,2]
[423412178,1780091433000,-156.604429,8.8e-05,2]
[423412180,1780091433000,-156.604429,8.8e-05,2]
[423412177,1780091433000,-156.604429,8.8e-05,2]
[423412182,1780091433000,-151.0,8.8e-05,2]
[423412185,1780091433000,-151.0,8.8e-05,2]
[423412183,1780091433000,-151.0,8.8e-05,2]
[423412186,1780091433000,-200.162005,8.8e-05,2]
[423412187,1780091433000,-500.0,8.809e-05,2]
[423412188,1780091433000,-500.0,8.849e-05,2]
[423412190,1780091433000,-166.66,8.96e-05,2]
[423412194,1780091433000,-500.0,9.125e-05,2]
[423412193,1780091433000,-3292.0,9.071e-05,2]
[423412191,1780091433000,-500.0,9.019e-05,2]
[423412189,1780091433000,-500.0,8.914e-05,2]
[423412192,1780091433000,-14350.21515273,9.04e-05,2]
[423412195,1780091433000,-500.0,9.23e-05,2]
[423412196,1780091433000,-2000.0,9.247e-05,2]
[423412197,1780091433000,-1298.22100725,9.299e-05,2]
[423412198,1780091433000,-1170.11251281,9.299e-05,2]
[423412222,1780091433000,-151.0,9.933e-05,2]
[423412218,1780091433000,-500.0,9.862e-05,2]
[423412227,1780091433000,-500.0,9.933e-05,2]
[423412248,1780091433000,-500.0,9.933e-05,2]
[423412251,1780091433000,-500.0,9.933e-05,2]
[423412254,1780091433000,-500.0,9.933e-05,2]
[423412256,1780091433000,-500.0,9.933e-05,2]
[423412253,1780091433000,-500.0,9.933e-05,2]
[423412255,1780091433000,-500.0,9.933e-05,2]
[423412257,1780091433000,-500.0,9.933e-05,2]
[423412258,1780091433000,-500.0,9.933e-05,2]
[423412260,1780091433000,-500.0,9.933e-05,2]
[423412262,1780091433000,-500.0,9.933e-05,2]
[423412263,1780091433000,-500.0,9.933e-05,2]
[423412259,1780091433000,-500.0,9.933e-05,2]
[423412265,1780091433000,-500.0,9.933e-05,2]
[423412267,1780091433000,-500.0,9.933e-05,2]
[423412264,1780091433000,-500.0,9.933e-05,2]
[423412269,1780091433000,-500.0,9.933e-05,2]
[423412266,1780091433000,-500.0,9.933e-05,2]
[423412268,1780091433000,-500.0,9.933e-05,2]
[423412270,1780091433000,-500.0,9.933e-05,2]
[423412271,1780091433000,-500.0,9.933e-05,2]
[423412225,1780091433000,-500.0,9.933e-05,2]
[423412249,1780091433000,-500.0,9.933e-05,2]
[423412250,1780091433000,-500.0,9.933e-05,2]
[423412261,1780091433000,-500.0,9.933e-05,2]
[423412247,1780091433000,-500.0,9.933e-05,2]
[423412252,1780091433000,-500.0,9.933e-05,2]
[423412229,1780091433000,-500.0,9.933e-05,2]
[423412228,1780091433000,-500.0,9.933e-05,2]
[423412223,1780091433000,-500.0,9.933e-05,2]
[423412230,1780091433000,-500.0,9.933e-05,2]
[423412231,1780091433000,-500.0,9.933e-05,2]
[423412233,1780091433000,-500.0,9.933e-05,2]
[423412235,1780091433000,-500.0,9.933e-05,2]
[423412234,1780091433000,-500.0,9.933e-05,2]
[423412237,1780091433000,-500.0,9.933e-05,2]
[423412232,1780091433000,-500.0,9.933e-05,2]
[423412226,1780091433000,-500.0,9.933e-05,2]
[423412242,1780091433000,-500.0,9.933e-05,2]
[423412238,1780091433000,-500.0,9.933e-05,2]
[423412236,1780091433000,-500.0,9.933e-05,2]
[423412245,1780091433000,-500.0,9.933e-05,2]
[423412243,1780091433000,-500.0,9.933e-05,2]
[423412239,1780091433000,-500.0,9.933e-05,2]
[423412244,1780091433000,-500.0,9.933e-05,2]
[423412240,1780091433000,-500.0,9.933e-05,2]
[423412241,1780091433000,-500.0,9.933e-05,2]
[423412246,1780091433000,-500.0,9.933e-05,2]
[423412288,1780091434000,-500.0,9.933e-05,2]
[423412291,1780091434000,-500.0,9.933e-05,2]
[423412284,1780091434000,-500.0,9.933e-05,2]
[423412286,1780091434000,-500.0,9.933e-05,2]
[423412285,1780091434000,-500.0,9.933e-05,2]
[423412296,1780091434000,-500.0,9.933e-05,2]
[423412292,1780091434000,-500.0,9.933e-05,2]
[423412293,1780091434000,-500.0,9.933e-05,2]
[423412297,1780091434000,-500.0,9.933e-05,2]
[423412287,1780091434000,-500.0,9.933e-05,2]
[423412289,1780091434000,-500.0,9.933e-05,2]
[423412294,1780091434000,-500.0,9.933e-05,2]
[423412280,1780091434000,-151.0,9.933e-05,2]
[423412283,1780091434000,-500.0,9.933e-05,2]
[423412282,1780091434000,-500.0,9.933e-05,2]
[423412279,1780091434000,-500.0,9.933e-05,2]
[423412277,1780091434000,-500.0,9.933e-05,2]
[423412281,1780091434000,-500.0,9.933e-05,2]
[423412275,1780091434000,-500.0,9.933e-05,2]
[423412276,1780091434000,-500.0,9.933e-05,2]
[423412273,1780091434000,-500.0,9.933e-05,2]
[423412278,1780091434000,-500.0,9.933e-05,2]
[423412274,1780091434000,-500.0,9.933e-05,2]
[423412272,1780091434000,-500.0,9.933e-05,2]
[423412295,1780091434000,-500.0,9.933e-05,2]
[423412290,1780091434000,-500.0,9.933e-05,2]
[423412298,1780091434000,-500.0,9.933e-05,2]
[423412315,1780091434000,-1175.497728,9.933e-05,2]
[423412301,1780091434000,-500.0,9.933e-05,2]
[423412325,1780091434000,-151.0,9.945e-05,2]
[423412326,1780091434000,-21509.54004397,9.945e-05,2]
[423412322,1780091434000,-1175.497728,9.945e-05,2]
[423412299,1780091434000,-500.0,9.933e-05,2]
[423412323,1780091434000,-1175.497728,9.945e-05,2]
[423412318,1780091434000,-156.604429,9.933e-05,2]
[423412321,1780091434000,-1175.497728,9.945e-05,2]
[423412320,1780091434000,-156.604423,9.933e-05,2]
[423412317,1780091434000,-156.604429,9.933e-05,2]
[423412324,1780091434000,-1175.497728,9.945e-05,2]
[423412316,1780091434000,-151.0,9.933e-05,2]
[423412313,1780091434000,-1175.497728,9.933e-05,2]
[423412319,1780091434000,-156.604429,9.933e-05,2]
[423412312,1780091434000,-1175.497728,9.933e-05,2]
[423412302,1780091434000,-500.0,9.933e-05,2]
[423412300,1780091434000,-500.0,9.933e-05,2]
[423412303,1780091434000,-500.0,9.933e-05,2]
[423412314,1780091434000,-1175.497728,9.933e-05,2]
[423412308,1780091434000,-500.0,9.933e-05,2]
[423412309,1780091434000,-500.0,9.933e-05,2]
[423412310,1780091434000,-500.0,9.933e-05,2]
[423412305,1780091434000,-500.0,9.933e-05,2]
[423412304,1780091434000,-500.0,9.933e-05,2]
[423412306,1780091434000,-500.0,9.933e-05,2]
[423412307,1780091434000,-500.0,9.933e-05,2]
[423412311,1780091434000,-287.87789,9.933e-05,2]
[423412327,1780091436000,-147282.95995603,9.945e-05,2]
[423412328,1780091436000,-30220.3076351,9.945e-05,2]
[423412330,1780091436000,-17417.88693212,9.945e-05,2]
[423412329,1780091436000,-20532.50006197,9.945e-05,2]
[423412332,1780091436000,-830.80761298,9.945e-05,2]
[423412334,1780091436000,-13487.36143372,9.945e-05,2]
[423412333,1780091436000,-19224.88568267,9.945e-05,2]
[423412335,1780091436000,-1167.93980651,9.945e-05,2]
[423412331,1780091436000,-1254.41808677,9.945e-05,2]
[423412340,1780091437000,-309.58983761,9.945e-05,2]
[423412343,1780091438000,-95374.68147484,9.96e-05,2]
[423412341,1780091438000,-57759.30291055,9.945e-05,2]
[423412342,1780091438000,-1897.92526136,9.957e-05,2]
[423412450,1780091440000,-1025.49280924,9.96e-05,2]
[423412449,1780091440000,-630.83125301,9.96e-05,2]
[423412465,1780091443000,-24.53483052,9.96e-05,2]
[423412470,1780091446000,-5037.95942036,9.15e-05,2]
[423412471,1780091446000,-3789.50860804,9.15e-05,2]
[423412474,1780091446000,-50340.49881734,9.96e-05,2]
[423412472,1780091446000,-5000.0,9.16e-05,2]
[423412473,1780091446000,-5000.0,9.16e-05,2]
[423412486,1780091447000,152.0,9.713e-05,7]
[423412488,1780091575000,330.0,9.973e-05,3]
[423412489,1780091668000,1293.0,9.96e-05,5]
[423412490,1780091693000,-300.0,6.778e-05,2]
[423412491,1780091746000,-300.0,6.778e-05,2]
[423412492,1780091799000,-1200.0,6.778e-05,2]
[423412493,1780091853000,-150.0,7.453e-05,2]
[423412495,1780091907000,-300.0,7.453e-05,2]
[423412496,1780091961000,-500.0,7.453e-05,2]
[423412497,1780091962000,330.0,9.973e-05,3]
[423412498,1780092014000,-500.0,7.453e-05,2]
[423412499,1780092067000,-500.0,7.452e-05,2]
[423412502,1780092120000,-300.0,7.451e-05,2]
[423412506,1780092174000,-500.0,7.451e-05,2]
[423412509,1780092275000,1026.0,9.86e-05,5]
[423412510,1780092281000,2050.0,0.00028082,120]
[423412512,1780092291000,-1168.90095683,0.00039379,120]
[423412513,1780092291000,-1305.55009475,0.00039379,120]
[423412511,1780092291000,-186.10445523,0.00039379,120]
[423412533,1780092292000,-2214.15297176,0.00039379,120]
[423412526,1780092292000,-1571.88361156,0.00039379,120]
[423412532,1780092292000,-1545.66682872,0.00039379,120]
[423412530,1780092292000,-1447.0474674,0.00039379,120]
[423412531,1780092292000,-1256.65837758,0.00039379,120]
[423412529,1780092292000,-2134.65182188,0.00039379,120]
[423412528,1780092292000,-1899.53721646,0.00039379,120]
[423412527,1780092292000,-1105.67829255,0.00039379,120]
[423412524,1780092292000,-3403.83426537,0.00039379,120]
[423412514,1780092292000,-1172.79990737,0.00039379,120]
[423412523,1780092292000,-2302.81588833,0.00039379,120]
[423412521,1780092292000,-1130.29722641,0.00039379,120]
[423412519,1780092292000,-1730.144403,0.00039379,120]
[423412522,1780092292000,-1451.57878875,0.00039379,120]
[423412520,1780092292000,-2187.74022263,0.00039379,120]
[423412517,1780092292000,-1387.87442163,0.00039379,120]
[423412518,1780092292000,-2450.87310311,0.00039379,120]
[423412515,1780092292000,-1714.93455479,0.00039379,120]
[423412534,1780092292000,-1758.22497554,0.00039379,120]
[423412525,1780092292000,-1466.74015038,0.00039379,120]
[423412535,1780092292000,-1810.34285409,0.00039379,120]
[423412516,1780092292000,-722.79674972,0.00039379,120]
[423412537,1780092292000,-1976.28541569,0.00039379,120]
[423412536,1780092292000,-1881.95065585,0.00039379,120]
[423412557,1780092292000,-732.2225867,0.00039379,120]
[423412556,1780092292000,-299.45764973,0.00039379,120]
[423412552,1780092292000,-500.0,0.00039379,120]
[423412555,1780092292000,-196.94104175,0.00039379,120]
[423412554,1780092292000,-490.93,0.00039379,120]
[423412553,1780092292000,-500.0,0.00039379,120]
[423412551,1780092292000,-500.0,0.00039379,120]
[423412550,1780092292000,-500.0,0.00039379,120]
[423412549,1780092292000,-500.0,0.00039379,120]
[423412558,1780092292000,-544.40434694,0.00039379,120]
[423412547,1780092292000,-1000.0,0.00039379,120]
[423412548,1780092292000,-193.5196185,0.00039379,120]
[423412538,1780092292000,-1016.31606062,0.00039379,120]
[423412540,1780092292000,-959.79,0.00039379,120]
[423412541,1780092292000,-781.05,0.00039379,120]
[423412539,1780092292000,-2000.0,0.00039379,120]
[423412542,1780092292000,-1000.0,0.00039379,120]
[423412544,1780092292000,-500.0,0.00039379,120]
[423412545,1780092292000,-500.0,0.00039379,120]
[423412546,1780092292000,-1039.14428894,0.00039379,120]
[423412543,1780092292000,-1000.0,0.00039379,120]
[423412569,1780092293000,-500.0,0.00039379,120]
[423412576,1780092293000,-824.68,0.00039379,120]
[423412575,1780092293000,-824.68,0.00039379,120]
[423412577,1780092293000,-824.68,0.00039379,120]
[423412574,1780092293000,-824.68,0.00039379,120]
[423412570,1780092293000,-824.68,0.00039379,120]
[423412571,1780092293000,-824.68,0.00039379,120]
[423412572,1780092293000,-824.68,0.00039379,120]
[423412573,1780092293000,-824.68,0.00039379,120]
[423412563,1780092293000,-500.0,0.00039379,120]
[423412565,1780092293000,-500.0,0.00039379,120]
[423412566,1780092293000,-500.0,0.00039379,120]
[423412567,1780092293000,-500.0,0.00039379,120]
[423412561,1780092293000,-500.0,0.00039379,120]
[423412562,1780092293000,-500.0,0.00039379,120]
[423412564,1780092293000,-500.0,0.00039379,120]
[423412560,1780092293000,-500.0,0.00039379,120]
[423412559,1780092293000,-500.0,0.00039379,120]
[423412581,1780092293000,-824.68,0.00039379,120]
[423412568,1780092293000,-410.05385811,0.00039379,120]
[423412578,1780092293000,-824.68,0.00039379,120]
[423412582,1780092293000,-824.68,0.00039379,120]
[423412580,1780092293000,-824.68,0.00039379,120]
[423412579,1780092293000,-824.68,0.00039379,120]
[423412600,1780092293000,-500.0,0.00039379,120]
[423412601,1780092293000,-200.08207852,0.00039379,120]
[423412598,1780092293000,-224.12429605,0.00039379,120]
[423412597,1780092293000,-500.0,0.00039379,120]
[423412596,1780092293000,-279.36123097,0.00039379,120]
[423412595,1780092293000,-220.37605429,0.00039379,120]
[423412591,1780092293000,-824.68,0.00039379,120]
[423412594,1780092293000,-3534.1,0.00039379,120]
[423412599,1780092293000,-200.03631842,0.00039379,120]
[423412592,1780092293000,-824.68,0.00039379,120]
[423412593,1780092293000,-1052.52,0.00039379,120]
[423412583,1780092293000,-824.68,0.00039379,120]
[423412585,1780092293000,-824.68,0.00039379,120]
[423412586,1780092293000,-824.68,0.00039379,120]
[423412584,1780092293000,-824.68,0.00039379,120]
[423412588,1780092293000,-824.68,0.00039379,120]
[423412589,1780092293000,-824.68,0.00039379,120]
[423412590,1780092293000,-824.68,0.00039379,120]
[423412587,1780092293000,-824.68,0.00039379,120]
[423412612,1780092294000,-500.0,0.00039379,120]
[423412618,1780092294000,-500.0,0.00039379,120]
[423412617,1780092294000,-500.0,0.00039379,120]
[423412616,1780092294000,-500.0,0.00039379,120]
[423412615,1780092294000,-500.0,0.00039379,120]
[423412614,1780092294000,-500.0,0.00039379,120]
[423412613,1780092294000,-500.0,0.00039379,120]
[423412610,1780092294000,-500.0,0.00039379,120]
[423412605,1780092294000,-500.0,0.00039379,120]
[423412608,1780092294000,-500.0,0.00039379,120]
[423412609,1780092294000,-500.0,0.00039379,120]
[423412607,1780092294000,-500.0,0.00039379,120]
[423412604,1780092294000,-500.0,0.00039379,120]
[423412603,1780092294000,-500.0,0.00039379,120]
[423412602,1780092294000,-1015.68,0.00039379,120]
[423412619,1780092294000,-500.0,0.00039379,120]
[423412611,1780092294000,-500.0,0.00039379,120]
[423412620,1780092294000,-500.0,0.00039379,120]
[423412606,1780092294000,-500.0,0.00039379,120]
[423412621,1780092294000,-500.0,0.00039379,120]
[423412638,1780092294000,-500.0,0.00039379,120]
[423412639,1780092294000,-500.0,0.00039379,120]
[423412637,1780092294000,-500.0,0.00039379,120]
[423412636,1780092294000,-151.53438451,0.00039379,120]
[423412640,1780092294000,-500.0,0.00039379,120]
[423412635,1780092294000,-245.19136693,0.00039379,120]
[423412634,1780092294000,-1234.34,0.00039379,120]
[423412632,1780092294000,-27008.45,0.00039379,120]
[423412633,1780092294000,-194.57993704,0.00039379,120]
[423412622,1780092294000,-500.0,0.00039379,120]
[423412629,1780092294000,-1000.0,0.00039379,120]
[423412631,1780092294000,-671.62006539,0.00039379,120]
[423412628,1780092294000,-1205.64,0.00039379,120]
[423412627,1780092294000,-282.3811474,0.00039379,120]
[423412625,1780092294000,-505.2402606,0.00039379,120]
[423412626,1780092294000,-324.47407594,0.00039379,120]
[423412624,1780092294000,-500.0,0.00039379,120]
[423412623,1780092294000,-252.05237193,0.00039379,120]
[423412630,1780092294000,-1000.0,0.00039379,120]
[423412652,1780092295000,-1000.0,0.00039379,120]
[423412653,1780092295000,-1000.0,0.00039379,120]
[423412656,1780092295000,-261.532477,0.00039379,120]
[423412654,1780092295000,-1000.0,0.00039379,120]
[423412657,1780092295000,-238.7704607,0.00039379,120]
[423412650,1780092295000,-166.14286513,0.00039379,120]
[423412655,1780092295000,-562.12,0.00039379,120]
[423412651,1780092295000,-200.34620535,0.00039379,120]
[423412644,1780092295000,-500.0,0.00039379,120]
[423412648,1780092295000,-500.0,0.00039379,120]
[423412646,1780092295000,-500.0,0.00039379,120]
[423412647,1780092295000,-500.0,0.00039379,120]
[423412645,1780092295000,-500.0,0.00039379,120]
[423412642,1780092295000,-500.0,0.00039379,120]
[423412643,1780092295000,-500.0,0.00039379,120]
[423412641,1780092295000,-500.0,0.00039379,120]
[423412658,1780092295000,-1000.0,0.00039379,120]
[423412649,1780092295000,-500.0,0.00039379,120]
[423412660,1780092295000,-1000.0,0.00039379,120]
[423412659,1780092295000,-1000.0,0.00039379,120]
[423412674,1780092295000,-694.38,0.00039379,120]
[423412680,1780092295000,-694.38,0.00039379,120]
[423412661,1780092295000,-1000.0,0.00039379,120]
[423412681,1780092295000,-694.38,0.00039379,120]
[423412678,1780092295000,-694.38,0.00039379,120]
[423412679,1780092295000,-694.38,0.00039379,120]
[423412676,1780092295000,-694.38,0.00039379,120]
[423412677,1780092295000,-694.38,0.00039379,120]
[423412675,1780092295000,-694.38,0.00039379,120]
[423412671,1780092295000,-694.38,0.00039379,120]
[423412673,1780092295000,-694.38,0.00039379,120]
[423412670,1780092295000,-694.38,0.00039379,120]
[423412669,1780092295000,-694.38,0.00039379,120]
[423412667,1780092295000,-1000.0,0.00039379,120]
[423412668,1780092295000,-694.38,0.00039379,120]
[423412666,1780092295000,-1000.0,0.00039379,120]
[423412665,1780092295000,-1000.0,0.00039379,120]
[423412663,1780092295000,-1037.52,0.00039379,120]
[423412664,1780092295000,-1000.0,0.00039379,120]
[423412662,1780092295000,-452.65,0.00039379,120]
[423412672,1780092295000,-694.38,0.00039379,120]
[423412692,1780092296000,-1000.0,0.00039379,120]
[423412694,1780092296000,-671.59,0.00039379,120]
[423412697,1780092296000,-1000.0,0.00039379,120]
[423412703,1780092296000,-1000.0,0.00039379,120]
[423412698,1780092296000,-1000.0,0.00039379,120]
[423412699,1780092296000,-1000.0,0.00039379,120]
[423412695,1780092296000,-494.48,0.00039379,120]
[423412696,1780092296000,-166.16269741,0.00039379,120]
[423412693,1780092296000,-1000.0,0.00039379,120]
[423412683,1780092296000,-694.38,0.00039379,120]
[423412690,1780092296000,-694.38,0.00039379,120]
[423412691,1780092296000,-694.46,0.00039379,120]
[423412689,1780092296000,-694.38,0.00039379,120]
[423412687,1780092296000,-694.38,0.00039379,120]
[423412686,1780092296000,-694.38,0.00039379,120]
[423412684,1780092296000,-694.38,0.00039379,120]
[423412685,1780092296000,-694.38,0.00039379,120]
[423412682,1780092296000,-694.38,0.00039379,120]
[423412688,1780092296000,-694.38,0.00039379,120]
[423412702,1780092296000,-1000.0,0.00039379,120]
[423412705,1780092296000,-555.5,0.00039379,120]
[423412700,1780092296000,-562.12,0.00039379,120]
[423412721,1780092296000,-555.5,0.00039379,120]
[423412701,1780092296000,-1000.0,0.00039379,120]
[423412719,1780092296000,-555.5,0.00039379,120]
[423412720,1780092296000,-555.5,0.00039379,120]
[423412717,1780092296000,-555.5,0.00039379,120]
[423412718,1780092296000,-555.5,0.00039379,120]
[423412716,1780092296000,-555.5,0.00039379,120]
[423412715,1780092296000,-555.5,0.00039379,120]
[423412713,1780092296000,-555.5,0.00039379,120]
[423412722,1780092296000,-555.5,0.00039379,120]
[423412712,1780092296000,-555.5,0.00039379,120]
[423412710,1780092296000,-555.5,0.00039379,120]
[423412711,1780092296000,-555.5,0.00039379,120]
[423412708,1780092296000,-555.5,0.00039379,120]
[423412709,1780092296000,-555.5,0.00039379,120]